bitfinex/quotes_SOLUSD_20251207
["timestamp","ask_amount","ask_price","bid_price","bid_amount"]
[1765099461017,3.51573179,131.83,131.79,7.68782912]
[1765099461223,0.69,131.82,131.79,8.39782912]
[1765099461519,0.69,131.82,131.79,7.68782912]
[1765099461722,0.69,131.82,131.79,8.39782912]
[1765099461905,3.51573179,131.83,131.8,0.71]
[1765099462220,4.20573179,131.83,131.8,0.71]
[1765099462402,0.69,131.82,131.79,8.39782912]
[1765099462597,3.51573179,131.83,131.79,7.68782912]
[1765099462804,4.20573179,131.83,131.8,8.29708079]
[1765099465834,19.82459579,131.85,131.81,0.71]
[1765099466138,16.308864,131.83,131.81,0.71]
[1765099466504,11.79019238,131.85,131.81,0.71]
[1765099467017,7.58446059,131.85,131.81,0.71]
[1765099467834,7.58446059,131.85,131.81,8.29640016]
[1765099468008,8.27446059,131.85,131.82,0.71]
[1765099469037,11.79019238,131.85,131.82,0.71]
[1765099469331,11.10019238,131.85,131.82,0.71]
[1765099469570,11.79019238,131.85,131.82,0.71]
[1765099470035,4.20573179,131.85,131.82,8.29602277]
[1765099470529,4.20573179,131.85,131.83,0.71]
[1765099470920,4.20573179,131.84,131.79,7.68740143]
[1765099471232,3.51573179,131.81,131.79,8.39740143]
[1765099471442,3.51573179,131.82,131.79,8.39740143]
[1765099471739,0.69,131.83,131.79,8.39740143]
[1765099471912,4.20573179,131.82,131.79,8.39740143]
[1765099472113,3.51573179,131.81,131.79,0.81]
[1765099472750,4.20573179,131.81,131.79,0.81]
[1765099472906,3.51573179,131.81,131.79,0.81]
[1765099474061,11.79189278,131.82,131.79,0.81]
[1765099475035,4.20573179,131.81,131.79,0.1]
[1765099475538,16.308864,131.79,131.75,1.31659986]
[1765099475863,3.51573179,131.76,131.75,1.31659986]
[1765099476028,11.87573179,131.76,131.75,1.31659986]
[1765099476359,0.69,131.76,131.75,1.31659986]
[1765099476525,3.51573179,131.81,131.75,2.02659986]
[1765099476526,0.69,131.8,131.75,2.02659986]
[1765099476733,19.82459579,131.79,131.76,0.21]
[1765099477340,19.82459579,131.79,131.75,8.90669884]
[1765099477341,4.20573179,131.78,131.75,8.90669884]
[1765099477537,3.51573179,131.78,131.75,8.90669884]
[1765099478055,4.20573179,131.78,131.75,8.90669884]
[1765099478747,4.20573179,131.78,131.75,9.61669884]
[1765099482441,4.20573179,131.78,131.75,2.02659986]
[1765099482650,4.20573179,131.77,131.75,1.31659986]
[1765099482850,3.51573179,131.76,131.75,1.31659986]
[1765099483051,4.20573179,131.76,131.75,1.31659986]
[1765099485348,12.29528855,131.76,131.75,1.31659986]
[1765099486463,4.70573179,131.76,131.75,1.31659986]
[1765099487050,12.29528855,131.76,131.75,1.31659986]
[1765099488250,21.10523347,131.76,131.75,1.31659986]
[1765099488648,24.14555574,131.76,131.75,1.31659986]
[1765099490168,29.46523347,131.76,131.75,1.31659986]
[1765099490354,29.46523347,131.76,131.73,0.1]
[1765099490355,16.40065389,131.74,131.73,0.1]
[1765099490558,39.74098147,131.74,131.73,0.1]
[1765099490758,40.45098147,131.74,131.73,0.1]
[1765099491169,24.14211747,131.74,131.73,0.1]
[1765099492867,15.33217255,131.74,131.73,0.1]
[1765099495475,15.83217255,131.74,131.73,0.1]
[1765099495977,20.67644076,131.74,131.73,0.1]
[1765099496351,13.08573179,131.74,131.73,0.1]
[1765099496547,12.37573179,131.74,131.73,0.1]
[1765099496753,4.01573179,131.74,131.73,0.1]
[1765099497372,0.5,131.74,131.73,0.78]
[1765099497674,3.51573179,131.74,131.73,0.1]
[1765099499050,3.51573179,131.74,131.73,0.78]
[1765099499263,19.82459579,131.75,131.73,0.78]
[1765099499463,19.82459579,131.75,131.73,8.37127515]
[1765099499676,3.51573179,131.75,131.73,8.37127515]
[1765099499857,3.51573179,131.75,131.74,0.68]
[1765099500176,19.82459579,131.75,131.74,0.68]
[1765099500770,16.308864,131.75,131.73,0.78]
[1765099501069,3.51573179,131.74,131.73,0.78]
[1765099501279,4.17573179,131.74,131.73,0.1]
[1765099501776,11.76644076,131.74,131.73,0.1]
[1765099502369,10.50614202,131.74,131.73,0.1]
[1765099502568,19.52787422,131.74,131.73,0.1]
[1765099502767,20.02787422,131.74,131.73,0.1]
[1765099502971,133.13781914,131.74,131.73,0.1]
[1765099505374,11.06537797,131.73,131.72,0.1]
[1765099505569,20.08537797,131.73,131.72,0.1]
[1765099506282,27.67666317,131.73,131.72,0.1]
[1765099507674,8.80994492,131.71,131.69,0.1]
[1765099507882,8.80994492,131.71,131.63,3.62902875]
[1765099507883,2.25543305,131.64,131.63,4.30902875]
[1765099508281,2.25543305,131.64,131.63,3.62902875]
[1765099508282,26.16077228,131.64,131.63,3.62902875]
[1765099508590,18.56429705,131.64,131.63,4.30902875]
[1765099509192,8.36,131.66,131.63,4.30902875]
[1765099509396,18.56429705,131.64,131.63,4.30902875]
[1765099509688,2.25543305,131.67,131.64,0.68]
[1765099510493,2.25543305,131.66,131.64,0.68]
[1765099510900,18.56429705,131.68,131.64,8.27629172]
[1765099511289,18.56429705,131.68,131.65,0.68]
[1765099511804,16.308864,131.68,131.65,0.68]
[1765099512100,10.63543305,131.69,131.65,0.68]
[1765099512801,2.25543305,131.68,131.65,8.27559963]
[1765099513178,2.25543305,131.68,131.66,0.68]
[1765099513502,2.25543305,131.67,131.66,0.68]
[1765099513681,2.25543305,131.67,131.64,0.68]
[1765099513682,18.56429705,131.67,131.64,0.68]
[1765099513882,16.308864,131.67,131.64,0.68]
[1765099514691,16.308864,131.67,131.65,7.59579654]
[1765099514876,2.25543305,131.68,131.65,7.59579654]
[1765099515077,2.25543305,131.68,131.66,0.68]
[1765099515283,0.5,131.68,131.66,0.68]
[1765099516106,0.5,131.68,131.66,8.27520946]
[1765099516501,2.25543305,131.7,131.67,0.68]
[1765099518781,2.25543305,131.7,131.67,8.27426374]
[1765099519212,2.25543305,131.7,131.68,0.68]
[1765099520083,2.25543305,131.71,131.68,0.68]
[1765099520495,2.75543305,131.71,131.68,0.68]
[1765099521103,2.75543305,131.71,131.68,8.27411229]
[1765099521497,2.75543305,131.71,131.69,0.67]
[1765099523310,0.5,131.71,131.69,0.67]
[1765099523504,2.75543305,131.71,131.69,0.67]
[1765099524883,0.5,131.71,131.69,8.26332121]
[1765099525104,2.25543305,131.73,131.69,8.26332121]
[1765099525322,2.25543305,131.73,131.7,0.67]
[1765099525612,16.978864,131.74,131.7,0.67]
[1765099525790,2.25543305,131.73,131.7,0.67]
[1765099526713,2.25543305,131.73,131.7,8.26294273]
[1765099527290,2.25543305,131.73,131.71,0.67]
[1765099527933,2.92543305,131.73,131.68,26.5788503]
[1765099528824,2.92543305,131.73,131.68,28.83428335]
[1765099529126,0.67,131.73,131.68,28.83428335]
[1765099529427,2.92543305,131.73,131.68,28.83428335]
[1765099529822,2.92543305,131.73,131.7,7.59301442]
[1765099529992,0.67,131.73,131.7,7.59301442]
[1765099530311,2.92543305,131.73,131.7,7.59301442]
[1765099530495,2.25543305,131.72,131.69,7.59341233]
[1765099530690,2.25543305,131.71,131.68,8.16394991]
[1765099530920,2.92543305,131.71,131.68,8.16394991]
[1765099531808,2.25543305,131.72,131.69,7.59355636]
[1765099532113,0.5,131.72,131.69,10.41898941]
[1765099532314,0.5,131.72,131.7,0.57]
[1765099532513,2.25543305,131.73,131.7,0.57]
[1765099532702,2.92543305,131.72,131.68,8.16399617]
[1765099533316,2.92543305,131.71,131.68,8.16399617]
[1765099534212,0.67,131.71,131.68,8.16399617]
[1765099534420,0.67,131.7,131.68,7.59399617]
[1765099534618,2.25543305,131.71,131.68,7.59399617]
[1765099534803,2.92543305,131.71,131.68,7.59399617]
[1765099537426,2.92543305,131.71,131.65,10.63543305]
[1765099537427,2.25543305,131.69,131.65,18.98952802]
[1765099537599,2.25543305,131.68,131.65,7.59569644]
[1765099537804,2.92543305,131.69,131.66,7.59528286]
[1765099539436,0.67,131.68,131.66,7.59528286]
[1765099541041,2.25543305,131.69,131.66,7.59528286]
[1765099541238,2.92543305,131.69,131.66,7.59528286]
[1765099541937,2.25543305,131.69,131.66,7.59528286]
[1765099542148,0.67,131.68,131.66,7.59528286]
[1765099542931,2.92543305,131.69,131.66,7.59528286]
[1765099543134,0.67,131.68,131.65,8.16575759]
[1765099543446,2.92543305,131.68,131.65,8.16575759]
[1765099544130,0.67,131.68,131.65,8.16575759]
[1765099544338,2.25543305,131.69,131.65,8.16575759]
[1765099544530,0.67,131.68,131.65,8.16575759]
[1765099544909,2.25543305,131.69,131.65,8.16575759]
[1765099545109,0.67,131.68,131.65,8.16575759]
[1765099545312,0.67,131.69,131.66,0.57]
[1765099545510,2.92543305,131.69,131.66,0.57]
[1765099545923,0.67,131.68,131.65,7.59575759]
[1765099546134,0.67,131.68,131.65,8.16575759]
[1765099546330,2.25543305,131.69,131.65,8.16575759]
[1765099546616,2.92543305,131.69,131.65,8.16575759]
[1765099547038,2.92543305,131.69,131.66,0.57]
[1765099548131,0.5,131.68,131.66,0.57]
[1765099548537,0.5,131.68,131.66,8.16494059]
[1765099550546,2.92543305,131.69,131.66,8.16494059]
[1765099552731,2.92543305,131.69,131.64,26.58693607]
[1765099553014,2.92543305,131.69,131.65,0.57]
[1765099553824,2.92543305,131.69,131.66,7.59532128]
[1765099554946,2.25543305,131.69,131.66,7.59532128]
[1765099555151,2.95543305,131.69,131.66,8.16532128]
[1765099556947,2.25543305,131.7,131.67,8.16452758]
[1765099557321,2.75543305,131.7,131.67,8.16452758]
[1765099557527,3.45543305,131.7,131.67,8.16452758]
[1765099559160,0.5,131.7,131.68,0.57]
[1765099559673,0.5,131.7,131.67,8.16452758]
[1765099560156,3.46543305,131.7,131.67,8.16452758]
[1765099561146,1.21,131.7,131.67,8.16452758]
[1765099561348,2.75543305,131.7,131.67,8.16452758]
[1765099561652,1.21,131.7,131.67,8.16452758]
[1765099561823,0.71,131.7,131.67,8.16452758]
[1765099562023,2.96543305,131.7,131.67,8.16452758]
[1765099562243,0.71,131.7,131.67,8.16452758]
[1765099562551,2.96543305,131.7,131.67,8.16452758]
[1765099564067,0.71,131.74,131.69,2.25543305]
[1765099564346,4.23293693,131.74,131.7,8.36]
[1765099564547,4.23293693,131.74,131.7,8.93]
[1765099564749,3.52293693,131.76,131.71,4.09293693]
[1765099564923,7.58840491,131.78,131.72,3.52293693]
[1765099565122,4.23293693,131.77,131.73,8.36]
[1765099565328,0.71,131.77,131.73,12.45293693]
[1765099565536,4.73293693,131.77,131.73,11.88293693]
[1765099565736,1.21,131.77,131.74,0.57]
[1765099565945,1.21,131.77,131.73,7.5912852]
[1765099565946,0.71,131.76,131.73,7.5912852]
[1765099566362,4.23293693,131.76,131.72,7.59168063]
[1765099566535,4.23293693,131.76,131.72,15.95168063]
[1765099566536,3.52293693,131.75,131.72,15.95168063]
[1765099566854,4.23293693,131.75,131.72,15.95168063]
[1765099567053,19.83180093,131.76,131.72,16.52168063]
[1765099567440,17.018864,131.76,131.73,0.57]
[1765099567634,17.018864,131.76,131.72,19.47461756]
[1765099567848,20.54180093,131.76,131.72,16.52168063]
[1765099568043,17.018864,131.76,131.72,16.52168063]
[1765099568364,4.23293693,131.77,131.73,4.09293693]
[1765099568737,19.83180093,131.78,131.74,4.09293693]
[1765099569135,19.83180093,131.78,131.75,0.57]
[1765099569334,17.018864,131.78,131.75,0.57]
[1765099569531,11.82033306,131.8,131.75,12.45293693]
[1765099569854,4.23293693,131.8,131.75,12.45293693]
[1765099570049,0.71,131.79,131.76,8.15923451]
[1765099570440,4.23293693,131.79,131.75,19.47290818]
[1765099570757,3.52293693,131.77,131.73,12.45293693]
[1765099570956,3.52293693,131.77,131.73,8.93]
[1765099571174,4.23293693,131.77,131.73,8.93]
[1765099571335,0.71,131.76,131.73,8.93]
[1765099571537,3.52293693,131.77,131.74,7.59058492]
[1765099571737,4.23293693,131.77,131.74,7.59058492]
[1765099572360,0.71,131.77,131.74,7.59058492]
[1765099573857,0.71,131.78,131.74,11.68352185]
[1765099574240,0.71,131.78,131.74,11.11352185]
[1765099574445,0.71,131.78,131.74,11.68352185]
[1765099577665,16.308864,131.76,131.74,7.59058492]
[1765099577846,16.308864,131.76,131.74,19.47352185]
[1765099578046,0.71,131.77,131.74,19.47352185]
[1765099579854,0.71,131.77,131.74,20.04352185]
[1765099580253,17.018864,131.78,131.75,4.09293693]
[1765099581244,0.71,131.78,131.75,4.09293693]
[1765099581459,28.12946637,131.8,131.76,0.57]
[1765099581658,0.71,131.79,131.76,0.57]
[1765099581856,0.71,131.79,131.74,34.92735735]
[1765099581857,0.71,131.79,131.75,4.09293693]
[1765099582071,11.82083583,131.79,131.75,11.11293538]
[1765099582272,11.82083583,131.79,131.75,7.58999845]
[1765099582457,0.71,131.78,131.75,7.58999845]
[1765099583244,0.71,131.78,131.74,11.88293693]
[1765099583571,0.71,131.78,131.74,19.47355799]
[1765099583974,0.71,131.78,131.74,20.04355799]
[1765099584352,3.52293693,131.79,131.75,4.09293693]
[1765099584550,0.71,131.79,131.75,4.09293693]
[1765099584777,24.60617716,131.8,131.76,4.09293693]
[1765099584973,17.018864,131.8,131.77,3.52293693]
[1765099586476,0.71,131.79,131.77,7.5889304]
[1765099586972,0.71,131.79,131.76,11.1123061]
[1765099587181,0.71,131.79,131.76,7.58936917]
[1765099588061,4.23293693,131.79,131.75,7.59000011]
[1765099588462,0.71,131.78,131.75,7.59000011]
[1765099589577,0.71,131.79,131.75,11.68293704]
[1765099589749,0.71,131.79,131.76,3.52293693]
[1765099590180,0.71,131.79,131.75,11.68293704]
[1765099590783,19.83180093,131.8,131.76,4.09293693]
[1765099591080,17.018864,131.8,131.76,4.09293693]
[1765099591457,35.77795731,131.82,131.77,4.09293693]
[1765099591661,28.12795731,131.82,131.77,12.45293693]
[1765099591861,0.71,131.81,131.77,11.88293693]
[1765099592063,0.71,131.81,131.77,12.45293693]
[1765099592971,0.71,131.81,131.78,7.58840491]
[1765099593582,4.23293693,131.81,131.78,7.58840491]
[1765099593886,3.52293693,131.8,131.77,15.9487473]
[1765099594084,4.23293693,131.8,131.77,15.9487473]
[1765099594279,0.71,131.79,131.77,15.9487473]
[1765099596586,0.71,131.8,131.77,15.9487473]
[1765099597292,27.41813804,131.82,131.77,19.47168423]
[1765099597488,28.12813804,131.82,131.78,0.57]
[1765099597796,0.71,131.81,131.78,8.15801384]
[1765099597972,0.71,131.81,131.78,7.58801384]
[1765099599213,16.308864,131.82,131.79,0.57]
[1765099599365,17.018864,131.82,131.78,11.68095077]
[1765099600580,17.018864,131.82,131.78,8.15801384]
[1765099600790,0.71,131.81,131.78,7.58801384]
[1765099600975,4.23293693,131.81,131.78,7.58801384]
[1765099601501,0.71,131.8,131.78,7.58801384]
[1765099603715,0.71,131.8,131.76,7.5893898]
[1765099603716,8.29734122,131.8,131.76,7.5893898]
[1765099603874,3.52293693,131.78,131.75,15.94995096]
[1765099604392,0.71,131.77,131.75,15.94995096]
[1765099606297,0.71,131.78,131.75,15.94995096]
[1765099606991,11.82020975,131.8,131.75,20.04288789]
[1765099607191,11.82024132,131.8,131.75,39.01821995]
[1765099607394,0.71,131.79,131.75,39.01821995]
[1765099607983,0.71,131.79,131.76,0.57]
[1765099608183,0.71,131.79,131.76,4.09293693]
[1765099608378,28.12852361,131.81,131.76,4.09293693]
[1765099608599,0.71,131.8,131.77,4.09293693]
[1765099608901,0.71,131.8,131.77,3.52293693]
[1765099609195,0.71,131.8,131.77,7.58898079]
[1765099609397,16.308864,131.78,131.76,7.58940503]
[1765099609606,16.308864,131.78,131.75,15.9497335]
[1765099609791,0.71,131.77,131.76,7.58953761]
[1765099610176,0.71,131.79,131.76,8.15953761]
[1765099610501,17.018864,131.79,131.76,7.58953761]
[1765099610706,16.978864,131.79,131.76,7.58953761]
[1765099611003,0.67,131.78,131.76,7.58953761]
[1765099613004,26.5523905,131.82,131.76,7.58953761]
[1765099613306,0.67,131.79,131.76,7.58953761]
[1765099614306,0.67,131.79,131.76,11.68247454]
[1765099615807,0.67,131.79,131.76,11.11247454]
[1765099616908,0.67,131.79,131.76,7.58953761]
[1765099617604,0.67,131.79,131.76,11.68247454]
[1765099619085,0.67,131.79,131.76,7.58953761]
[1765099620102,4.19293693,131.79,131.76,7.58953761]
[1765099620285,0.7,131.78,131.76,7.58953761]
[1765099620797,19.83180093,131.77,131.74,7.59062325]
[1765099621301,0.7,131.76,131.74,7.59062325]
[1765099621809,0.7,131.76,131.73,15.95106963]
[1765099622194,4.22293693,131.76,131.73,15.95106963]
[1765099622495,3.52293693,131.75,131.7,23.07474921]
[1765099622698,3.52293693,131.74,131.71,8.36]
[1765099622898,4.22293693,131.74,131.71,8.36]
[1765099623107,0.7,131.73,131.71,8.36]
[1765099623312,0.7,131.73,131.69,3.52293693]
[1765099623511,0.7,131.73,131.69,11.88293693]
[1765099623717,0.7,131.73,131.7,7.59262023]
[1765099624011,4.22293693,131.73,131.7,7.59262023]
[1765099624520,0.7,131.73,131.7,8.16262023]
[1765099625801,0.7,131.73,131.7,7.59262023]
[1765099633402,2.9545983,131.73,131.7,7.59262023]
[1765099633905,0.7,131.72,131.7,7.59262023]
[1765099637525,0.7,131.72,131.69,8.36]
[1765099637697,0.7,131.72,131.69,15.95338133]
[1765099637898,2.9545983,131.72,131.69,15.95338133]
[1765099638101,2.2545983,131.71,131.68,7.59394881]
[1765099638300,2.9545983,131.71,131.68,7.59394881]
[1765099638609,0.7,131.7,131.68,7.59394881]
[1765099638808,0.7,131.7,131.67,15.95459237]
[1765099639517,2.9545983,131.7,131.67,15.95459237]
[1765099640829,0.7,131.7,131.67,15.95459237]
[1765099641030,0.7,131.7,131.67,18.20919067]
[1765099641238,0.7,131.7,131.67,18.77919067]
[1765099641729,0.7,131.7,131.67,18.20919067]
[1765099641906,0.7,131.7,131.67,15.95459237]
[1765099642725,2.2545983,131.72,131.67,37.19605176]
[1765099642903,0.68,131.71,131.68,0.57]
[1765099643727,0.68,131.71,131.67,37.19605176]
[1765099643930,0.68,131.71,131.67,37.76605176]
[1765099644927,16.308864,131.73,131.68,2.8245983]
[1765099645107,16.308864,131.73,131.69,2.2545983]
[1765099645108,0.68,131.73,131.69,2.2545983]
[1765099645308,0.68,131.72,131.7,8.36]
[1765099645902,2.2545983,131.71,131.7,8.36]
[1765099646126,2.2545983,131.71,131.68,8.36]
[1765099646429,0.68,131.7,131.68,8.36]
[1765099646929,0.68,131.7,131.68,15.95387081]
[1765099649518,8.27204659,131.72,131.69,8.16358561]
[1765099649836,8.27204659,131.72,131.69,7.59358561]
[1765099650009,0.68,131.71,131.69,7.59358561]
[1765099650724,0.68,131.71,131.68,15.95397818]
[1765099652524,2.9345983,131.71,131.68,15.95397818]
[1765099653033,0.68,131.7,131.68,15.95397818]
[1765099653812,0.68,131.71,131.68,15.95397818]
[1765099654012,0.68,131.71,131.68,16.52397818]
[1765099654640,0.68,131.71,131.68,15.95397818]
[1765099658932,0.68,131.71,131.68,16.52397818]
[1765099659536,0.68,131.71,131.68,18.77857648]
[1765099660118,0.68,131.71,131.68,16.52397818]
[1765099661346,0.68,131.71,131.68,18.77857648]
[1765099662133,9.8460674,131.73,131.68,18.77857648]
[1765099662323,0.68,131.72,131.68,18.77857648]
[1765099665944,0.68,131.72,131.68,15.95397818]
[1765099667120,2.9345983,131.72,131.68,15.95397818]
[1765099667320,0.68,131.71,131.68,15.95397818]
[1765099668845,0.68,131.71,131.68,7.59397818]
[1765099673522,0.68,131.71,131.68,9.84857648]
[1765099673731,0.68,131.71,131.68,7.59397818]
[1765099674431,8.27248867,131.71,131.67,18.20910741]
[1765099674950,0.72,131.7,131.67,18.20910741]
[1765099675552,0.72,131.7,131.67,18.77910741]
[1765099676351,2.2545983,131.69,131.65,26.58498891]
[1765099676571,19.2834623,131.7,131.66,8.36]
[1765099676738,0.72,131.69,131.66,11.1845983]
[1765099677052,0.72,131.7,131.67,0.57]
[1765099677256,0.72,131.7,131.66,10.6145983]
[1765099677428,0.72,131.7,131.66,11.1845983]
[1765099678048,2.9745983,131.7,131.66,8.36]
[1765099678238,2.2545983,131.69,131.66,8.36]
[1765099678439,2.9745983,131.69,131.66,8.36]
[1765099678654,0.72,131.68,131.66,15.95528422]
[1765099678957,0.72,131.68,131.66,7.59528422]
[1765099683059,2.2545983,131.73,131.67,11.1845983]
[1765099683242,0.72,131.72,131.68,2.2545983]
[1765099683548,0.72,131.72,131.69,8.36]
[1765099684161,0.72,131.72,131.69,15.95324539]
[1765099684454,0.72,131.72,131.69,18.20784369]
[1765099685160,26.15432761,131.74,131.7,0.57]
[1765099685161,0.72,131.73,131.7,0.57]
[1765099685344,0.72,131.73,131.69,37.76182121]
[1765099685952,18.5634623,131.74,131.7,0.57]
[1765099686155,0.72,131.74,131.71,7.59243793]
[1765099686459,0.72,131.73,131.71,7.59243793]
[1765099687555,0.72,131.73,131.7,7.59301442]
[1765099688644,0.72,131.75,131.72,3.52240908]
[1765099688956,17.028864,131.76,131.72,3.52240908]
[1765099689158,17.028864,131.76,131.72,4.09240908]
[1765099689337,0.72,131.75,131.72,4.09240908]
[1765099690759,16.308864,131.76,131.73,7.5912852]
[1765099690964,0.72,131.75,131.73,7.5912852]
[1765099691457,17.028864,131.76,131.73,7.5912852]
[1765099691660,16.308864,131.76,131.73,7.5912852]
[1765099691834,0.72,131.75,131.73,7.5912852]
[1765099697270,0.72,131.76,131.73,7.5912852]
[1765099697867,0.72,131.76,131.73,11.11369428]
[1765099698056,0.72,131.76,131.73,11.68369428]
[1765099698258,0.72,131.76,131.74,8.36]
[1765099698976,0.72,131.76,131.75,7.59013282]
[1765099700677,0.67,131.77,131.75,7.59013282]
[1765099716199,0.67,131.78,131.75,8.16013282]
[1765099716375,0.67,131.77,131.75,7.59013282]
[1765099719187,3.52240908,131.79,131.76,0.57]
[1765099719372,4.19240908,131.79,131.76,0.57]
[1765099719573,3.52240908,131.79,131.75,30.65787396]
[1765099719786,0.67,131.78,131.75,30.65787396]
[1765099722309,0.67,131.78,131.75,26.56546488]
[1765099722475,0.67,131.78,131.75,7.59013282]
[1765099724203,4.19240908,131.78,131.75,7.59013282]
[1765099724498,0.67,131.77,131.75,7.59013282]
[1765099724675,4.19240908,131.77,131.74,7.59056218]
[1765099725100,0.67,131.76,131.74,7.59056218]
[1765099725672,0.67,131.76,131.73,15.93108583]
[1765099725876,0.67,131.76,131.71,18.98074323]
[1765099725877,3.52240908,131.74,131.71,18.98074323]
[1765099726078,19.83127308,131.75,131.71,18.98074323]
[1765099726295,20.50127308,131.75,131.71,18.98074323]
[1765099726578,4.19240908,131.74,131.71,18.98074323]
[1765099726778,4.19240908,131.74,131.72,7.59143059]
[1765099726986,0.67,131.73,131.71,26.57318116]
[1765099730418,0.67,131.73,131.71,30.09559024]
[1765099735295,0.67,131.73,131.71,26.57318116]
[1765099736326,0.67,131.73,131.71,7.59243793]
[1765099740713,0.67,131.73,131.71,11.11484701]
[1765099741526,0.67,131.73,131.71,7.59243793]
[1765099741830,19.83127308,131.75,131.71,7.59243793]
[1765099742207,16.308864,131.76,131.72,12.43240908]
[1765099742406,16.308864,131.76,131.72,11.86240908]
[1765099742407,0.69,131.75,131.72,11.86240908]
[1765099742617,0.69,131.75,131.72,8.34]
[1765099742815,0.69,131.75,131.72,11.86240908]
[1765099743738,0.69,131.75,131.73,7.5912852]
[1765099744425,0.69,131.75,131.73,11.11369428]
[1765099746725,3.52240908,131.77,131.73,30.09190729]
[1765099746932,0.69,131.76,131.74,3.52240908]
[1765099747352,0.69,131.76,131.74,11.86240908]
[1765099748018,0.69,131.76,131.75,7.59013282]
[1765099752236,0.69,131.76,131.74,15.93050657]
[1765099755828,0.69,131.76,131.74,18.18377546]
[1765099756846,16.308864,131.78,131.74,37.16054789]
[1765099757039,0.69,131.78,131.76,7.58955676]
[1765099757927,0.69,131.78,131.75,7.58991327]
[1765099760142,0.69,131.78,131.75,26.56524533]
[1765099769363,0.69,131.78,131.75,27.13524533]
[1765099769526,0.69,131.78,131.75,28.81851422]
[1765099770028,0.69,131.78,131.75,26.56524533]
[1765099773244,0.69,131.78,131.75,29.38851422]
[1765099773929,0.71,131.8,131.77,2.25326889]
[1765099774332,0.71,131.8,131.77,2.82326889]
[1765099774843,0.71,131.81,131.78,0.57]
[1765099775028,0.71,131.81,131.78,2.82326889]
[1765099776154,0.71,131.81,131.79,7.58782912]
[1765099776534,2.96326889,131.81,131.78,7.58831071]
[1765099776934,0.71,131.8,131.78,7.58831071]
[1765099778857,0.71,131.81,131.78,29.38259189]
[1765099779551,0.71,131.81,131.78,37.15259189]
[1765099780250,2.96326889,131.82,131.79,0.57]
[1765099780751,0.71,131.81,131.78,37.72259189]
[1765099781530,2.25326889,131.82,131.78,37.15259189]
[1765099781732,0.71,131.82,131.8,2.25326889]
[1765099782138,0.71,131.82,131.8,7.58725341]
[1765099782546,0.71,131.82,131.8,9.8405223]
[1765099786961,0.71,131.82,131.8,7.58725341]
[1765099791363,0.71,131.82,131.79,21.22218527]
[1765099791364,2.96326889,131.82,131.79,7.58768014]
[1765099791743,0.7,131.81,131.79,7.58768014]
[1765099793975,0.7,131.81,131.78,18.1815886]
[1765099795473,0.7,131.81,131.78,15.92831971]
[1765099797862,2.95326889,131.81,131.78,15.92831971]
[1765099798258,0.69,131.8,131.78,15.92831971]
[1765099798575,0.69,131.8,131.77,7.58875542]
[1765099798770,0.69,131.8,131.77,15.92875542]
[1765099800381,0.69,131.8,131.78,7.5882601]
[1765099801176,2.94326889,131.8,131.78,7.5882601]
[1765099801347,0.69,131.8,131.78,7.5882601]
[1765099801553,0.69,131.79,131.78,7.5882601]
[1765099802584,0.69,131.79,131.77,15.92882418]
[1765099804893,2.25326889,131.78,131.75,8.34]
[1765099805180,2.25326889,131.78,131.76,7.58954115]
[1765099805385,0.69,131.77,131.76,7.58954115]
[1765099807271,18.56213289,131.79,131.76,7.58954115]
[1765099807478,16.998864,131.79,131.76,8.15954115]
[1765099807682,2.25326889,131.81,131.76,28.81670196]
[1765099807865,0.69,131.81,131.77,2.82326889]
[1765099808068,0.69,131.83,131.79,2.25326889]
[1765099808384,0.69,131.83,131.8,3.51725475]
[1765099808559,0.69,131.83,131.81,7.58667779]
[1765099808762,0.2,131.84,131.82,3.51725475]
[1765099808968,0.2,131.84,131.83,3.51725475]
[1765099809169,0.2,131.84,131.83,4.08725475]
[1765099809779,0.2,131.84,131.83,12.89719967]